[Event "Spring Tour GM Mix A 2022"]
[Site "Cattolica"]
[Date "2022.03.11"]
[Round "1.6"]
[White "Park, Evan"]
[Black "Pranav Anand"]
[Result "*"]
[ECO "E61"]
[WhiteElo "2296"]
[BlackElo "2436"]
[Annotator "ChessBase"]
[PlyCount "23"]
[EventDate "2022.03.10"]
[EventType "swiss"]
[EventCountry "ITA"]
[SourceTitle "playchess.com"]
[Source "ChessBase"]
[SourceQuality "1"]
[TimeControl "5400+30"]

1. d4 {[%emt 0:00:35]} d6 {[%emt 0:00:06]} 2. Nf3 {[%emt 0:00:29]} g6 {[%emt 1:31:24]} 3. c4 {[%emt 0:01:40]} Nf6 {[%emt 0:00:07]} 4. Nc3 {[%emt 0:00:07]} Bf5 {[%emt 0:00:04]} 5. Qb3 {[%emt 1:30:09]} b6 {[%emt 0:00:26]} 6. g3 {[%emt 1:28:56]} Bg7 {[%emt 0:00:29]} 7. Bg2 {[%emt 0:00:08]} Nc6 {[%emt 0:01:25]} 8. Qa4 {[%emt 0:04:18]} Bd7 {[%emt 0:00:17]} 9. Qc2 {[%emt 0:00:40]} O-O {[%emt 0:00:19]} 10. O-O {[%emt 0:04:07]} Bf5 {[%emt 0:17:02]} 11. e4 {[%emt 0:20:05]} Bg4 {[%emt 0:01:26]} 12. Be3 {[%emt 0:01:53]} *

[Event "Spring Tour GM Mix A 2022"]
[Site "Cattolica"]
[Date "2022.03.11"]
[Round "1.7"]
[White "Hjartarson, Johann"]
[Black "Kanyamarala, Tarun"]
[Result "*"]
[ECO "E08"]
[WhiteElo "2470"]
[BlackElo "2343"]
[Annotator "ChessBase"]
[PlyCount "29"]
[EventDate "2022.03.10"]
[EventType "swiss"]
[EventCountry "ITA"]
[SourceTitle "playchess.com"]
[Source "ChessBase"]
[SourceQuality "1"]
[TimeControl "5400+30"]

1. Nf3 {[%emt 0:00:25]} d5 {[%emt 1:31:00]} 2. d4 {[%emt 0:00:21]} Nf6 {[%emt 0:00:08]} 3. c4 {[%emt 0:00:15]} e6 {[%emt 0:00:04]} 4. g3 {[%emt 0:00:20]} Bb4+ {[%emt 0:00:32]} 5. Bd2 {[%emt 0:00:05]} Be7 {[%emt 0:00:08]} 6. Bg2 {[%emt 0:00:37]} O-O {[%emt 0:00:19]} 7. O-O {[%emt 0:00:46]} Nbd7 {[%emt 0:01:40]} 8. Qc2 {[%emt 0:03:57]} c6 {[%emt 0:01:09]} 9. Rd1 {[%emt 0:01:17]} b6 {[%emt 0:00:32]} 10. Bf4 {[%emt 0:03:33]} Ba6 {[%emt 0:00:46]} 11. Nbd2 {[%emt 0:03:49]} Nh5 {[%emt 0:17:38]} 12. Be3 {[%emt 0:06:18]} Nhf6 {[%emt 0:03:28]} 13. Bf4 {[%emt 0:02:02]} Nh5 {[%emt 0:00:07]} 14. Be3 {[%emt 0:02:19]} Nhf6 {[%emt 0:01:58]} 15. Bf4 {[%emt 0:02:19]} *

[Event "Spring Tour GM Mix A 2022"]
[Site "Cattolica"]
[Date "2022.03.11"]
[Round "1.8"]
[White "Marzaduri, Riccardo"]
[Black "Davtyan, Artur"]
[Result "*"]
[ECO "D58"]
[WhiteElo "2180"]
[BlackElo "2460"]
[Annotator "ChessBase"]
[PlyCount "25"]
[EventDate "2022.03.10"]
[EventType "swiss"]
[EventCountry "ITA"]
[SourceTitle "playchess.com"]
[Source "ChessBase"]
[SourceQuality "1"]
[TimeControl "5400+30"]

1. d4 {[%emt 0:00:05]} d5 {[%emt 0:05:45]} 2. c4 {[%emt 0:00:00]} e6 {[%emt 0:00:04]} 3. Nc3 {[%emt 0:00:00]} Nf6 {[%emt 0:00:30]} 4. Bg5 {[%emt 0:00:00]} Be7 {[%emt 0:04:47]} 5. Nf3 {[%emt 0:00:00]} Nbd7 {[%emt 1:21:54]} 6. e3 {[%emt 0:00:00]} h6 {[%emt 0:00:51]} 7. Bh4 {[%emt 0:00:00]} O-O {[%emt 0:01:33]} 8. Rc1 {[%emt 0:00:00]} c5 {[%emt 0:02:35]} 9. cxd5 {[%emt 0:00:00]} Nxd5 {[%emt 0:01:06]} 10. Bxe7 {[%emt 0:00:00]} Nxe7 {[%emt 0:00:22]} 11. Bd3 {[%emt 0:00:00]} b6 {[%emt 0:06:58]} 12. O-O {[%emt 0:00:00]} Bb7 {[%emt 0:01:57]} 13. Be4 {[%emt 0:00:00]} *

[Event "Spring Tour GM Mix A 2022"]
[Site "Cattolica"]
[Date "2022.03.11"]
[Round "1.9"]
[White "Dahale, Atul"]
[Black "Roshka, Yevgeniy"]
[Result "*"]
[ECO "B29"]
[WhiteElo "2148"]
[BlackElo "2478"]
[Annotator "ChessBase"]
[PlyCount "20"]
[EventDate "2022.03.10"]
[EventType "swiss"]
[EventCountry "ITA"]
[SourceTitle "playchess.com"]
[Source "ChessBase"]
[SourceQuality "1"]
[TimeControl "5400+30"]

1. Nf3 {[%emt 0:04:50]} c5 {[%emt 0:00:19]} 2. e4 {[%emt 0:01:32]} Nf6 {[%emt 0:00:07]} 3. e5 {[%emt 0:04:06]} Nd5 {[%emt 0:00:06]} 4. d4 {[%emt 0:00:04]} cxd4 {[%emt 0:00:04]} 5. Qxd4 {[%emt 0:00:04]} e6 {[%emt 0:00:06]} 6. g3 {[%emt 0:01:58]} Nc6 {[%emt 0:00:14]} 7. Qe4 {[%emt 0:00:06]} d6 {[%emt 0:03:45]} 8. c4 {[%emt 0:04:02]} Qa5+ {[%emt 0:06:56]} 9. Nbd2 {[%emt 0:02:46]} dxe5 {[%emt 0:02:05]} 10. Nxe5 {[%emt 0:22:34]} Ndb4 {[%emt 0:04:58]} *

[Event "Spring Tour GM Mix A 2022"]
[Site "Cattolica"]
[Date "2022.03.11"]
[Round "1.10"]
[White "Mirzoev, Emil"]
[Black "Ermitsch, Magnus"]
[Result "*"]
[ECO "B13"]
[WhiteElo "2460"]
[BlackElo "2127"]
[Annotator "ChessBase"]
[PlyCount "28"]
[EventDate "2022.03.10"]
[EventType "swiss"]
[EventCountry "ITA"]
[SourceTitle "playchess.com"]
[Source "ChessBase"]
[SourceQuality "1"]
[TimeControl "5400+30"]

1. d4 {[%emt 0:01:44]} d5 {[%emt 0:19:28]} 2. Bf4 {[%emt 0:01:30]} c5 {[%emt 0:02:17]} 3. e3 {[%emt 0:00:05]} cxd4 {[%emt 0:00:15]} 4. exd4 {[%emt 0:00:15]} Nc6 {[%emt 0:00:06]} 5. Nf3 {[%emt 0:00:23]} Bg4 {[%emt 0:04:31]} 6. Nbd2 {[%emt 0:03:28]} e6 {[%emt 0:01:18]} 7. c3 {[%emt 0:00:23]} Bd6 {[%emt 0:01:43]} 8. Bxd6 {[%emt 0:00:42]} Qxd6 {[%emt 0:00:01]} 9. h3 {[%emt 0:03:02]} Bh5 {[%emt 0:00:38]} 10. Bd3 {[%emt 0:00:24]} Nge7 {[%emt 0:01:38]} 11. O-O {[%emt 0:00:20]} f6 {[%emt 0:01:41]} 12. Re1 {[%emt 0:07:27]} e5 {[%emt 0:04:40]} 13. dxe5 {[%emt 0:00:18]} fxe5 {[%emt 0:58:44]} 14. Bb5 {[%emt 0:00:27]} O-O-O {[%emt 0:02:23]} *

[Event "Spring Tour GM Mix A 2022"]
[Site "Cattolica"]
[Date "2022.03.14"]
[Round "8.2"]
[White "Song, Julien"]
[Black "Czerw, Dawid"]
[Result "1/2-1/2"]
[ECO "E01"]
[WhiteElo "2352"]
[BlackElo "2398"]
[Annotator "ChessBase"]
[PlyCount "55"]
[EventDate "2022.03.10"]
[EventType "swiss"]
[EventCountry "ITA"]
[SourceTitle "playchess.com"]
[Source "ChessBase"]
[SourceQuality "1"]
[TimeControl "5400+30"]

1. d4 {[%emt 0:00:02]} Nf6 {[%emt 0:04:51]} 2. c4 {[%emt 0:00:24]} e6 {[%emt 0:00:05]} 3. Nf3 {[%emt 0:00:39]} d5 {[%emt 0:00:05]} 4. g3 {[%emt 0:00:57]} Bb4+ {[%emt 0:00:12]} 5. Bd2 {[%emt 0:00:53]} Bd6 {[%emt 0:00:08]} 6. Bg2 {[%emt 0:02:14]} O-O {[%emt 0:01:01]} 7. b3 {[%emt 0:08:49]} dxc4 {[%emt 0:03:34]} 8. bxc4 {[%emt 0:01:11]} c5 {[%emt 0:00:06]} 9. e3 {[%emt 0:01:58]} Ne4 {[%emt 0:09:33]} 10. O-O {[%emt 0:02:29]} Nxd2 {[%emt 0:00:05]} 11. Nbxd2 {[%emt 0:00:44]} Nd7 {[%emt 0:02:12]} 12. Ne4 {[%emt 0:04:09]} Qc7 {[%emt 0:03:04]} 13. Nxd6 {[%emt 0:20:58]} Qxd6 {[%emt 0:00:06]} 14. Qb3 {[%emt 0:01:41]} cxd4 {[%emt 0:13:30]} 15. exd4 {[%emt 0:00:37]} Rb8 {[%emt 0:03:10]} 16. c5 {[%emt 0:08:33]} Qc7 {[%emt 0:00:38]} 17. Rac1 {[%emt 0:02:54]} e5 {[%emt 0:08:49]} 18. Qa3 {[%emt 0:06:05]} a6 {[%emt 0:09:53]} 19. d5 {[%emt 0:02:47]} h6 {[%emt 0:00:13]} 20. Rfe1 {[%emt 0:06:16]} Re8 {[%emt 0:00:31]} 21. Nd4 {[%emt 0:02:05]} Qd8 {[%emt 0:02:48]} 22. Nf5 {[%emt 0:06:59]} Nxc5 {[%emt 0:01:57]} 23. Nxh6+ {[%emt 0:00:08]} gxh6 {[%emt 0:00:05]} 24. Qxc5 {[%emt 0:03:17]} Bf5 {[%emt 0:05:20]} 25. d6 {[%emt 0:00:04]} Qf6 {[%emt 0:00:21]} 26. Rcd1 {[%emt 0:08:55]} b6 {[%emt 0:03:32]} 27. Qa3 {[%emt 0:00:47]} Rbd8 {[%emt 0:05:38]} 28. Qxa6 {[%emt 0:02:57]} 1/2-1/2

[Event "Spring Tour GM Mix A 2022"]
[Site "Cattolica"]
[Date "2022.03.14"]
[Round "8.4"]
[White "Kamalidenova, Meruert"]
[Black "Vaishali R"]
[Result "1/2-1/2"]
[ECO "B33"]
[WhiteElo "2362"]
[BlackElo "2403"]
[Annotator "ChessBase"]
[PlyCount "189"]
[EventDate "2022.03.10"]
[EventType "swiss"]
[EventCountry "ITA"]
[SourceTitle "playchess.com"]
[Source "ChessBase"]
[SourceQuality "1"]
[TimeControl "5400+30"]

1. e4 {[%emt 0:00:05]} c5 {[%emt 0:04:17]} 2. Nf3 {[%emt 0:00:08]} Nc6 {[%emt 0:00:19]} 3. d4 {[%emt 0:00:31]} cxd4 {[%emt 0:00:06]} 4. Nxd4 {[%emt 0:00:08]} Nf6 {[%emt 0:00:03]} 5. Nc3 {[%emt 0:00:09]} e5 {[%emt 0:00:07]} 6. Ndb5 {[%emt 0:00:14]} d6 {[%emt 0:00:05]} 7. Bg5 {[%emt 0:00:42]} a6 {[%emt 0:00:09]} 8. Na3 {[%emt 0:00:12]} b5 {[%emt 0:00:06]} 9. Nd5 {[%emt 0:00:16]} Be7 {[%emt 0:00:06]} 10. Bxf6 {[%emt 0:00:08]} Bxf6 {[%emt 0:00:05]} 11. c3 {[%emt 0:00:08]} Rb8 {[%emt 0:00:37]} 12. Nc2 {[%emt 0:00:20]} Bg5 {[%emt 0:00:06]} 13. a4 {[%emt 0:00:46]} bxa4 {[%emt 0:00:08]} 14. Ncb4 {[%emt 0:01:11]} Nxb4 {[%emt 0:00:27]} 15. cxb4 {[%emt 0:01:26]} O-O {[%emt 0:00:29]} 16. Rxa4 {[%emt 0:02:08]} a5 {[%emt 0:00:34]} 17. b5 {[%emt 0:00:15]} f5 {[%emt 0:00:54]} 18. exf5 {[%emt 0:02:32]} Bxf5 {[%emt 0:00:12]} 19. Bc4 {[%emt 0:01:37]} Kh8 {[%emt 0:03:46]} 20. O-O {[%emt 0:01:41]} Be6 {[%emt 0:17:59]} 21. Kh1 {[%emt 0:11:36]} Qc8 {[%emt 0:09:04]} 22. b3 {[%emt 0:05:28]} Qc5 {[%emt 0:20:31]} 23. Rxa5 {[%emt 0:05:53]} Rxf2 {[%emt 0:00:26]} 24. Rxf2 {[%emt 0:01:05]} Qxf2 {[%emt 0:00:03]} 25. Qa1 {[%emt 0:02:34]} Bd8 {[%emt 0:20:51]} 26. Ra2 {[%emt 0:06:48]} Qh4 {[%emt 0:01:26]} 27. Qf1 {[%emt 0:03:21]} h5 {[%emt 0:06:24]} 28. Ra4 {[%emt 0:12:30]} Bxd5 {[%emt 0:05:35]} 29. Bxd5 {[%emt 0:02:59]} Qf6 {[%emt 0:00:11]} 30. Qd1 {[%emt 0:01:29]} g6 {[%emt 0:01:20]} 31. Ra7 {[%emt 0:01:56]} e4 {[%emt 0:03:44]} 32. Bxe4 {[%emt 0:03:02]} Rxb5 {[%emt 0:03:46]} 33. Qc1 {[%emt 0:04:05]} Qg5 {[%emt 0:00:49]} 34. Qf1 {[%emt 0:01:11]} Bf6 {[%emt 0:00:45]} 35. Bc2 {[%emt 0:06:13]} Rc5 {[%emt 0:00:28]} 36. Ra2 {[%emt 0:00:49]} Kg7 {[%emt 0:00:37]} 37. h3 {[%emt 0:02:53]} Rc7 {[%emt 0:00:49]} 38. b4 {[%emt 0:03:14]} Be5 {[%emt 0:00:18]} 39. Ra3 {[%emt 0:06:51]} Qd2 {[%emt 0:01:28]} 40. Bd1 {[%emt 0:00:23]} Qxb4 {[%emt 0:00:33]} 41. Rb3 {[%emt 0:00:32]} Qd2 {[%emt 0:00:11]} 42. Rd3 {[%emt 0:00:39]} Qg5 {[%emt 0:00:41]} 43. Rf3 {[%emt 0:01:30]} Rc1 {[%emt 0:00:31]} 44. Rb3 {[%emt 0:02:10]} Rc7 {[%emt 0:00:51]} 45. Rf3 {[%emt 0:00:07]} Rc1 {[%emt 0:00:09]} 46. Rb3 {[%emt 0:00:05]} Qe7 {[%emt 0:00:46]} 47. Qe2 {[%emt 0:02:45]} Qf7 {[%emt 0:00:29]} 48. Rf3 {[%emt 0:00:29]} Qd5 {[%emt 0:00:19]} 49. Rf1 {[%emt 0:00:16]} Rc3 {[%emt 0:00:26]} 50. Rf3 {[%emt 0:00:31]} Rc7 {[%emt 0:00:45]} 51. Rf1 {[%emt 0:00:19]} Rc3 {[%emt 0:00:33]} 52. Rf3 {[%emt 0:00:06]} Rc7 {[%emt 0:00:02]} 53. Rf1 {[%emt 0:00:02]} Rc1 {[%emt 0:00:55]} 54. Kg1 {[%emt 0:02:19]} Qd4+ {[%emt 0:00:31]} 55. Kh1 {[%emt 0:00:20]} Qd5 {[%emt 0:00:03]} 56. Kg1 {[%emt 0:00:13]} Ra1 {[%emt 0:00:24]} 57. Qc2 {[%emt 0:04:42]} Ra7 {[%emt 0:01:05]} 58. Kh1 {[%emt 0:00:40]} Ra2 {[%emt 0:00:31]} 59. Qc7+ {[%emt 0:00:21]} Kh6 {[%emt 0:00:02]} 60. Bf3 {[%emt 0:00:31]} Qd3 {[%emt 0:00:42]} 61. Qc1+ {[%emt 0:00:16]} Qd2 {[%emt 0:00:35]} 62. Qxd2+ {[%emt 0:00:19]} Rxd2 {[%emt 0:00:02]} 63. Rd1 {[%emt 0:00:07]} Rb2 {[%emt 0:00:37]} 64. Kg1 {[%emt 0:00:10]} Kg5 {[%emt 0:00:08]} 65. Kf1 {[%emt 0:00:40]} Kf4 {[%emt 0:00:16]} 66. Rd3 {[%emt 0:00:11]} Ra2 {[%emt 0:01:11]} 67. Ke1 {[%emt 0:00:36]} Rb2 {[%emt 0:00:37]} 68. Kf1 {[%emt 0:00:08]} Rb4 {[%emt 0:00:09]} 69. Ke2 {[%emt 0:00:15]} Bd4 {[%emt 0:00:23]} 70. Kd1 {[%emt 0:00:37]} Ke5 {[%emt 0:00:27]} 71. Ra3 {[%emt 0:00:07]} Rb2 {[%emt 0:00:18]} 72. Ra8 {[%emt 0:01:27]} Kf4 {[%emt 0:00:25]} 73. Ra3 {[%emt 0:00:19]} Be3 {[%emt 0:01:17]} 74. Rd3 {[%emt 0:00:20]} Bc5 {[%emt 0:00:07]} 75. Rd2 {[%emt 0:00:55]} Rb3 {[%emt 0:00:15]} 76. Bd5 {[%emt 0:00:30]} Ra3 {[%emt 0:00:34]} 77. Ra2 {[%emt 0:00:57]} Rd3+ {[%emt 0:00:41]} 78. Rd2 {[%emt 0:00:04]} Ra3 {[%emt 0:00:02]} 79. Ra2 {[%emt 0:00:08]} Rg3 {[%emt 0:00:10]} 80. Rb2 {[%emt 0:01:38]} Rg5 {[%emt 0:01:07]} 81. Rd2 {[%emt 0:00:31]} Rf5 {[%emt 0:01:00]} 82. Bf3 {[%emt 0:00:22]} Kg3 {[%emt 0:00:40]} 83. Rd5 {[%emt 0:00:52]} Rf6 {[%emt 0:00:36]} 84. Be4 {[%emt 0:00:21]} Re6 {[%emt 0:00:25]} 85. Bf3 {[%emt 0:00:20]} Be3 {[%emt 0:00:27]} 86. Rd3 {[%emt 0:00:52]} Kf2 {[%emt 0:00:18]} 87. Kc2 {[%emt 0:00:24]} Rf6 {[%emt 0:00:48]} 88. Be4 {[%emt 0:01:03]} g5 {[%emt 0:00:07]} 89. Rd5 {[%emt 0:00:09]} g4 {[%emt 0:01:04]} 90. hxg4 {[%emt 0:00:11]} hxg4 {[%emt 0:00:03]} 91. Rf5+ {[%emt 0:00:23]} Rxf5 {[%emt 0:00:04]} 92. Bxf5 {[%emt 0:00:04]} g3 {[%emt 0:00:03]} 93. Be4 {[%emt 0:00:07]} Ke2 {[%emt 0:00:04]} 94. Bf3+ {[%emt 0:00:05]} Kf2 {[%emt 0:00:02]} 95. Kd3 {[%emt 0:00:05]} 1/2-1/2

[Event "Spring Tour GM Mix A 2022"]
[Site "Cattolica"]
[Date "2022.03.14"]
[Round "8.5"]
[White "Deuer, Marius"]
[Black "Damia, Angelo"]
[Result "1/2-1/2"]
[ECO "A60"]
[WhiteElo "2304"]
[BlackElo "2223"]
[Annotator "ChessBase"]
[PlyCount "129"]
[EventDate "2022.03.10"]
[EventType "swiss"]
[EventCountry "ITA"]
[SourceTitle "playchess.com"]
[Source "ChessBase"]
[SourceQuality "1"]
[TimeControl "5400+30"]

1. d4 {[%emt 0:00:28]} Nf6 {[%emt 0:00:05]} 2. c4 {[%emt 0:00:04]} e6 {[%emt 0:00:03]} 3. Nc3 {[%emt 0:00:04]} c5 {[%emt 0:00:05]} 4. d5 {[%emt 0:00:11]} Bd6 {[%emt 0:00:48]} 5. g3 {[%emt 0:09:34]} Be5 {[%emt 0:03:56]} 6. Bd2 {[%emt 0:00:52]} Bxc3 {[%emt 0:00:47]} 7. Bxc3 {[%emt 0:00:44]} exd5 {[%emt 0:01:11]} 8. cxd5 {[%emt 0:00:11]} d6 {[%emt 0:00:21]} 9. Bg2 {[%emt 0:03:29]} O-O {[%emt 0:00:45]} 10. Nf3 {[%emt 0:01:05]} Ne4 {[%emt 0:03:43]} 11. O-O {[%emt 0:01:14]} Bg4 {[%emt 0:05:33]} 12. Nd2 {[%emt 0:04:23]} Nxc3 {[%emt 0:00:14]} 13. bxc3 {[%emt 0:00:01]} Nd7 {[%emt 0:05:32]} 14. h3 {[%emt 0:09:45]} Bf5 {[%emt 0:00:06]} 15. e4 {[%emt 0:02:42]} Bg6 {[%emt 0:00:04]} 16. g4 {[%emt 0:05:41]} b5 {[%emt 0:01:49]} 17. f4 {[%emt 0:05:14]} f6 {[%emt 0:00:10]} 18. h4 {[%emt 0:06:16]} c4 {[%emt 0:04:58]} 19. h5 {[%emt 0:10:04]} Qb6+ {[%emt 0:00:47]} 20. Kh2 {[%emt 0:01:35]} Bf7 {[%emt 0:00:14]} 21. Nf3 {[%emt 0:05:12]} Rae8 {[%emt 0:08:37]} 22. Nd4 {[%emt 0:02:16]} Nc5 {[%emt 0:01:02]} 23. Qc2 {[%emt 0:00:08]} b4 {[%emt 0:03:59]} 24. cxb4 {[%emt 0:03:22]} Nxe4 {[%emt 0:03:14]} 25. Ne6 {[%emt 0:00:09]} Bxe6 {[%emt 0:00:10]} 26. dxe6 {[%emt 0:00:07]} f5 {[%emt 0:00:33]} 27. Bxe4 {[%emt 0:05:10]} fxe4 {[%emt 0:00:14]} 28. Qxc4 {[%emt 0:01:16]} d5 {[%emt 0:00:37]} 29. Qxd5 {[%emt 0:00:07]} Qxe6 {[%emt 0:00:10]} 30. Qxe6+ {[%emt 0:00:17]} Rxe6 {[%emt 0:00:07]} 31. Rae1 {[%emt 0:02:42]} Rd8 {[%emt 0:09:54]} 32. Re2 {[%emt 0:05:03]} Rd4 {[%emt 0:01:42]} 33. a3 {[%emt 0:02:12]} Rd3 {[%emt 0:00:25]} 34. Rfe1 {[%emt 0:00:40]} e3 {[%emt 0:01:23]} 35. Ra1 {[%emt 0:00:57]} Ra6 {[%emt 0:01:24]} 36. Kg3 {[%emt 0:06:17]} Raxa3 {[%emt 0:01:13]} 37. Rxa3 {[%emt 0:01:22]} Rxa3 {[%emt 0:00:05]} 38. Kf3 {[%emt 0:00:34]} a5 {[%emt 0:00:23]} 39. bxa5 {[%emt 0:00:53]} Rxa5 {[%emt 0:00:05]} 40. Rxe3 {[%emt 0:05:48]} Kf7 {[%emt 0:01:16]} 41. g5 {[%emt 0:00:17]} h6 {[%emt 0:03:02]} 42. g6+ {[%emt 0:01:08]} Kf6 {[%emt 0:00:01]} 43. Kg4 {[%emt 0:00:02]} Ra1 {[%emt 0:00:16]} 44. Rb3 {[%emt 0:00:45]} Rg1+ {[%emt 0:00:07]} 45. Kf3 {[%emt 0:00:12]} Rf1+ {[%emt 0:02:38]} 46. Ke4 {[%emt 0:01:06]} Re1+ {[%emt 0:00:09]} 47. Kf3 {[%emt 0:01:15]} Rf1+ {[%emt 0:00:07]} 48. Kg3 {[%emt 0:00:38]} Rg1+ {[%emt 0:01:00]} 49. Kf2 {[%emt 0:00:16]} Rh1 {[%emt 0:00:19]} 50. Rb5 {[%emt 0:00:01]} Rh3 {[%emt 0:01:39]} 51. Kg2 {[%emt 0:00:12]} Rh4 {[%emt 0:03:31]} 52. Kg3 {[%emt 0:01:47]} Rh1 {[%emt 0:00:06]} 53. Ra5 {[%emt 0:00:38]} Rg1+ {[%emt 0:00:31]} 54. Kf2 {[%emt 0:00:30]} Rh1 {[%emt 0:00:16]} 55. Kg2 {[%emt 0:00:12]} Rh4 {[%emt 0:00:08]} 56. Kf3 {[%emt 0:00:44]} Rh1 {[%emt 0:00:16]} 57. Ra6+ {[%emt 0:00:30]} Kf5 {[%emt 0:00:28]} 58. Ra7 {[%emt 0:00:35]} Rh3+ {[%emt 0:02:39]} 59. Kg2 {[%emt 0:00:27]} Rxh5 {[%emt 0:00:12]} 60. Rxg7 {[%emt 0:00:03]} Kxf4 {[%emt 0:00:45]} 61. Rf7+ {[%emt 0:00:55]} Ke5 {[%emt 0:00:11]} 62. g7 {[%emt 0:00:16]} Rg5+ {[%emt 0:00:03]} 63. Kh3 {[%emt 0:00:08]} Ke6 {[%emt 0:00:05]} 64. Ra7 {[%emt 0:00:06]} Kf6 {[%emt 0:00:13]} 65. Rb7 {[%emt 0:00:03]} 1/2-1/2